[Event "Titled Tuesday Blitz May 10 Early 2022"]
[White "Yilmaz, Mustafa"]
[Black "Taichman, Ori"]
[WhiteFideId "6302718"]
[BlackFideId "2804069"]
[WhiteElo "2568"]
[BlackElo "2227"]
[Result "1-0"]
[Round "05"]
[TimeControl "180+1"]
[Date "2022.05.10"]
[WhiteClock "0:01:03"]
[BlackClock "0:00:03"]

1. d4 {[%clk 0:03:00]}  Nf6 {[%clk 0:02:56]} 2. c4 {[%clk 0:03:00]}  g6 {[%clk 0:02:55]} 3. Nc3 {[%clk 0:03:00]}  Bg7 {[%clk 0:02:55]} 4. e4 {[%clk 0:02:56]}  O-O {[%clk 0:02:56]} 5. Nge2 {[%clk 0:02:55]}  d6 {[%clk 0:02:55]} 6. Ng3 {[%clk 0:02:55]}  e5 {[%clk 0:02:55]} 7. d5 {[%clk 0:02:55]}  a5 {[%clk 0:02:51]} 8. h4 {[%clk 0:02:55]}  h5 {[%clk 0:02:29]} 9. Bg5 {[%clk 0:02:53]}  Qe8 {[%clk 0:02:30]} 10. Be2 {[%clk 0:02:43]}  Na6 {[%clk 0:02:30]} 11. Qd2 {[%clk 0:02:35]}  Nc5 {[%clk 0:02:21]} 12. O-O-O {[%clk 0:02:33]}  Bd7 {[%clk 0:02:15]} 13. Kb1 {[%clk 0:02:33]}  a4 {[%clk 0:02:15]} 14. f3 {[%clk 0:02:09]}  Kh7 {[%clk 0:02:02]} 15. Nf1 {[%clk 0:02:08]}  a3 {[%clk 0:01:44]} 16. b3 {[%clk 0:02:06]}  Ng8 {[%clk 0:00:54]} 17. g4 {[%clk 0:02:05]}  f5 {[%clk 0:00:52]} 18. gxf5 {[%clk 0:01:57]}  gxf5 {[%clk 0:00:52]} 19. Ne3 {[%clk 0:01:44]}  f4 {[%clk 0:00:25]} 20. Nc2 {[%clk 0:01:44]}  Bf6 {[%clk 0:00:23]} 21. Rdg1 {[%clk 0:01:41]}  Ne7 {[%clk 0:00:22]} 22. Bf1 {[%clk 0:01:40]}  Qf7 {[%clk 0:00:21]} 23. Bh3 {[%clk 0:01:39]}  Bxh3 {[%clk 0:00:20]} 24. Rxh3 {[%clk 0:01:40]}  Rg8 {[%clk 0:00:21]} 25. Rhh1 {[%clk 0:01:39]}  Bxg5 {[%clk 0:00:20]} 26. hxg5 {[%clk 0:01:38]}  Kg6 {[%clk 0:00:20]} 27. Rxh5 {[%clk 0:01:34]}  Rh8 {[%clk 0:00:19]} 28. Rh6+ {[%clk 0:01:34]}  Rxh6 {[%clk 0:00:16]} 29. gxh6+ {[%clk 0:01:34]}  Kxh6 {[%clk 0:00:16]} 30. Nb5 {[%clk 0:01:22]}  Ng6 {[%clk 0:00:16]} 31. Qg2 {[%clk 0:01:18]}  Qf6 {[%clk 0:00:13]} 32. Nxc7 {[%clk 0:01:17]}  Rh8 {[%clk 0:00:12]} 33. b4 {[%clk 0:01:16]}  Na4 {[%clk 0:00:12]} 34. Ne6 {[%clk 0:01:14]}  Nc3+ {[%clk 0:00:11]} 35. Ka1 {[%clk 0:01:15]}  Kh7 {[%clk 0:00:09]} 36. Nxa3 {[%clk 0:01:12]}  b6 {[%clk 0:00:05]} 37. Kb2 {[%clk 0:01:10]}  Na4+ {[%clk 0:00:05]} 38. Kb3 {[%clk 0:01:11]}  Ra8 {[%clk 0:00:06]} 39. Rh1+ {[%clk 0:01:07]}  Kg8 {[%clk 0:00:06]} 40. Rh6 {[%clk 0:01:07]}  Kf7 {[%clk 0:00:06]} 41. Rh7+ {[%clk 0:01:08]}  Ke8 {[%clk 0:00:06]} 42. Nc7+ {[%clk 0:01:04]}  Kf8 {[%clk 0:00:05]} 43. Nxa8 {[%clk 0:01:04]}  Nh4 {[%clk 0:00:05]} 44. Qg4 {[%clk 0:01:03]}  Nxf3 {[%clk 0:00:03]} 45. Qc8+ {[%clk 0:01:03]} 1-0


[Site "https://www.chess.com"]

[Event "Titled Tuesday Blitz May 10 Early 2022"]
[White "Zaksaite, Salomeja"]
[Black "Devaev, Alexander"]
[WhiteFideId "12801496"]
[BlackFideId "4169395"]
[WhiteElo "1953"]
[BlackElo "2185"]
[Result "0-1"]
[Round "05"]
[TimeControl "180+1"]
[Date "2022.05.11"]
[WhiteClock "0:00:01"]
[BlackClock "0:01:17"]

1. e4 {[%clk 0:02:57]}  c6 {[%clk 0:02:59]} 2. d4 {[%clk 0:02:57]}  d5 {[%clk 0:03:00]} 3. exd5 {[%clk 0:02:57]}  cxd5 {[%clk 0:03:01]} 4. Bd3 {[%clk 0:02:57]}  Nc6 {[%clk 0:03:01]} 5. c3 {[%clk 0:02:56]}  g6 {[%clk 0:03:02]} 6. h3 {[%clk 0:02:54]}  Nh6 {[%clk 0:03:02]} 7. Bf4 {[%clk 0:02:49]}  Bg7 {[%clk 0:03:02]} 8. Nf3 {[%clk 0:02:49]}  O-O {[%clk 0:03:02]} 9. O-O {[%clk 0:02:46]}  f6 {[%clk 0:03:02]} 10. Re1 {[%clk 0:02:45]}  Nf7 {[%clk 0:03:03]} 11. c4 {[%clk 0:01:28]}  e5 {[%clk 0:02:53]} 12. dxe5 {[%clk 0:01:26]}  fxe5 {[%clk 0:02:53]} 13. cxd5 {[%clk 0:00:43]}  exf4 {[%clk 0:02:51]} 14. dxc6 {[%clk 0:00:43]}  Bxb2 {[%clk 0:02:37]} 15. Be4 {[%clk 0:00:33]}  Qxd1 {[%clk 0:02:35]} 16. Rxd1 {[%clk 0:00:32]}  Bxa1 {[%clk 0:02:33]} 17. cxb7 {[%clk 0:00:32]}  Bxb7 {[%clk 0:02:31]} 18. Bxb7 {[%clk 0:00:32]}  Rad8 {[%clk 0:02:23]} 19. Nbd2 {[%clk 0:00:31]}  Bc3 {[%clk 0:02:21]} 20. Kf1 {[%clk 0:00:27]}  Rd6 {[%clk 0:02:11]} 21. Be4 {[%clk 0:00:13]}  Rfd8 {[%clk 0:02:10]} 22. Ke2 {[%clk 0:00:13]}  Kg7 {[%clk 0:02:08]} 23. Bb1 {[%clk 0:00:10]}  h6 {[%clk 0:02:03]} 24. Bc2 {[%clk 0:00:10]}  Ng5 {[%clk 0:01:47]} 25. Bb3 {[%clk 0:00:07]}  Nxf3 {[%clk 0:01:44]} 26. Nxf3 {[%clk 0:00:06]}  Rxd1 {[%clk 0:01:43]} 27. Bxd1 {[%clk 0:00:06]}  g5 {[%clk 0:01:39]} 28. Bb3 {[%clk 0:00:05]}  Kf6 {[%clk 0:01:34]} 29. Nh2 {[%clk 0:00:05]}  h5 {[%clk 0:01:31]} 30. Kf3 {[%clk 0:00:02]}  Rd2 {[%clk 0:01:22]} 31. g3 {[%clk 0:00:01]}  Bd4 {[%clk 0:01:22]} 32. gxf4 {[%clk 0:00:01]}  Rxf2+ {[%clk 0:01:17]} 0-1


[Site "https://www.chess.com"]

[Event "Titled Tuesday Blitz May 10 Early 2022"]
[White "Zhao, Jun"]
[Black "Kozak, Antoni"]
[WhiteFideId "8602522"]
[BlackFideId "21832030"]
[WhiteElo "2547"]
[BlackElo "2322"]
[Result "1-0"]
[Round "05"]
[TimeControl "180+1"]
[Date "2022.05.10"]
[WhiteClock "0:00:44"]
[BlackClock "0:00:09"]

1. d4 {[%clk 0:02:50]}  d5 {[%clk 0:02:59]} 2. Bf4 {[%clk 0:02:51]}  c5 {[%clk 0:02:58]} 3. e3 {[%clk 0:02:51]}  cxd4 {[%clk 0:02:59]} 4. exd4 {[%clk 0:02:48]}  Nc6 {[%clk 0:02:59]} 5. c3 {[%clk 0:02:49]}  f6 {[%clk 0:02:56]} 6. Nf3 {[%clk 0:02:48]}  g5 {[%clk 0:02:56]} 7. Bg3 {[%clk 0:02:41]}  h5 {[%clk 0:02:56]} 8. h4 {[%clk 0:02:39]}  g4 {[%clk 0:02:54]} 9. Ng1 {[%clk 0:02:36]}  Bf5 {[%clk 0:02:44]} 10. Bd3 {[%clk 0:02:36]}  Nh6 {[%clk 0:02:33]} 11. Ne2 {[%clk 0:02:34]}  e5 {[%clk 0:02:23]} 12. O-O {[%clk 0:02:25]}  Bg7 {[%clk 0:02:15]} 13. Na3 {[%clk 0:02:17]}  O-O {[%clk 0:02:01]} 14. Nc2 {[%clk 0:02:16]}  Qd7 {[%clk 0:01:09]} 15. Ne3 {[%clk 0:01:58]}  Be6 {[%clk 0:01:08]} 16. Bg6 {[%clk 0:01:30]}  Bf7 {[%clk 0:00:56]} 17. Bxf7+ {[%clk 0:01:29]}  Qxf7 {[%clk 0:00:54]} 18. dxe5 {[%clk 0:01:29]}  fxe5 {[%clk 0:00:48]} 19. Qxd5 {[%clk 0:01:29]}  Rad8 {[%clk 0:00:45]} 20. Qxf7+ {[%clk 0:01:28]}  Rxf7 {[%clk 0:00:46]} 21. Rfd1 {[%clk 0:01:28]}  Rfd7 {[%clk 0:00:43]} 22. Rxd7 {[%clk 0:01:24]}  Rxd7 {[%clk 0:00:43]} 23. Rd1 {[%clk 0:01:23]}  Rxd1+ {[%clk 0:00:43]} 24. Nxd1 {[%clk 0:01:23]}  Nf5 {[%clk 0:00:44]} 25. Ne3 {[%clk 0:01:23]}  Nxe3 {[%clk 0:00:38]} 26. fxe3 {[%clk 0:01:23]}  Kf7 {[%clk 0:00:37]} 27. e4 {[%clk 0:01:21]}  Kf6 {[%clk 0:00:29]} 28. Bf2 {[%clk 0:01:20]}  Bh6 {[%clk 0:00:26]} 29. Ng3 {[%clk 0:01:18]}  Kg6 {[%clk 0:00:25]} 30. Kf1 {[%clk 0:01:18]}  a6 {[%clk 0:00:20]} 31. Ke2 {[%clk 0:01:17]}  Bc1 {[%clk 0:00:20]} 32. b3 {[%clk 0:01:17]}  Bf4 {[%clk 0:00:21]} 33. Nf5 {[%clk 0:01:16]}  Kf6 {[%clk 0:00:19]} 34. Kd3 {[%clk 0:01:15]}  Nd8 {[%clk 0:00:18]} 35. g3 {[%clk 0:01:11]}  Bc1 {[%clk 0:00:17]} 36. a4 {[%clk 0:01:02]}  Ba3 {[%clk 0:00:12]} 37. Kc4 {[%clk 0:00:59]}  Ne6 {[%clk 0:00:08]} 38. Be3 {[%clk 0:00:55]}  Bf8 {[%clk 0:00:07]} 39. b4 {[%clk 0:00:52]}  Nc7 {[%clk 0:00:07]} 40. Bc5 {[%clk 0:00:47]}  b5+ {[%clk 0:00:07]} 41. axb5 {[%clk 0:00:43]}  axb5+ {[%clk 0:00:08]} 42. Kb3 {[%clk 0:00:44]}  Bxc5 {[%clk 0:00:08]} 43. bxc5 {[%clk 0:00:45]}  Na6 {[%clk 0:00:09]} 44. c6 {[%clk 0:00:44]} 1-0


[Site "https://www.chess.com"]

[Event "Titled Tuesday Blitz May 10 Early 2022"]
[White "parintele_chess"]
[Black "Sadykov, Ramil"]
[BlackFideId "24113590"]
[WhiteElo "2223"]
[BlackElo "2280"]
[Result "1-0"]
[Round "05"]
[TimeControl "180+1"]
[Date "2022.05.11"]
[WhiteClock "0:00:09"]
[BlackClock "0:00:08"]

1. d4 {[%clk 0:03:00]}  Nf6 {[%clk 0:02:58]} 2. Bf4 {[%clk 0:03:01]}  d5 {[%clk 0:02:56]} 3. e3 {[%clk 0:03:01]}  c5 {[%clk 0:02:56]} 4. c3 {[%clk 0:03:01]}  Nc6 {[%clk 0:02:51]} 5. Nd2 {[%clk 0:02:59]}  Bf5 {[%clk 0:02:50]} 6. Ngf3 {[%clk 0:02:58]}  Qb6 {[%clk 0:02:35]} 7. Qb3 {[%clk 0:02:57]}  c4 {[%clk 0:02:34]} 8. Qxb6 {[%clk 0:02:57]}  axb6 {[%clk 0:02:35]} 9. a3 {[%clk 0:02:55]}  h6 {[%clk 0:02:25]} 10. Ne5 {[%clk 0:02:54]}  Nh5 {[%clk 0:02:20]} 11. Nxc6 {[%clk 0:02:49]}  bxc6 {[%clk 0:02:21]} 12. Be5 {[%clk 0:02:46]}  f6 {[%clk 0:02:15]} 13. Bg3 {[%clk 0:02:46]}  Nxg3 {[%clk 0:02:06]} 14. hxg3 {[%clk 0:02:47]}  e5 {[%clk 0:02:06]} 15. Nf3 {[%clk 0:02:30]}  Bd6 {[%clk 0:01:55]} 16. Nh4 {[%clk 0:02:30]}  Be4 {[%clk 0:01:47]} 17. f3 {[%clk 0:02:29]}  Bh7 {[%clk 0:01:45]} 18. f4 {[%clk 0:02:29]}  e4 {[%clk 0:01:21]} 19. g4 {[%clk 0:02:15]}  g5 {[%clk 0:01:14]} 20. fxg5 {[%clk 0:02:11]}  Bg3+ {[%clk 0:01:03]} 21. Kd2 {[%clk 0:02:07]}  fxg5 {[%clk 0:01:02]} 22. Nf5 {[%clk 0:02:03]}  Bxf5 {[%clk 0:01:01]} 23. gxf5 {[%clk 0:02:04]}  h5 {[%clk 0:00:40]} 24. Be2 {[%clk 0:01:57]}  h4 {[%clk 0:00:40]} 25. Bg4 {[%clk 0:01:50]}  Ke7 {[%clk 0:00:41]} 26. Rhf1 {[%clk 0:01:38]}  Rhf8 {[%clk 0:00:40]} 27. Bh3 {[%clk 0:01:25]}  Rf6 {[%clk 0:00:38]} 28. Bg4 {[%clk 0:01:24]}  Kd6 {[%clk 0:00:39]} 29. Rac1 {[%clk 0:01:18]}  c5 {[%clk 0:00:37]} 30. Ra1 {[%clk 0:01:13]}  cxd4 {[%clk 0:00:34]} 31. cxd4 {[%clk 0:01:14]}  b5 {[%clk 0:00:34]} 32. Kc3 {[%clk 0:01:12]}  Kc7 {[%clk 0:00:32]} 33. Kb4 {[%clk 0:01:01]}  Ra4+ {[%clk 0:00:23]} 34. Kc3 {[%clk 0:00:35]}  Bd6 {[%clk 0:00:21]} 35. Kc2 {[%clk 0:00:30]}  Kb6 {[%clk 0:00:20]} 36. Rf2 {[%clk 0:00:27]}  Be7 {[%clk 0:00:20]} 37. Rff1 {[%clk 0:00:27]}  Kc7 {[%clk 0:00:18]} 38. Kc3 {[%clk 0:00:26]}  Rfa6 {[%clk 0:00:18]} 39. Rad1 {[%clk 0:00:06]}  b4+ {[%clk 0:00:17]} 40. axb4 {[%clk 0:00:06]}  Bxb4+ {[%clk 0:00:11]} 41. Kc2 {[%clk 0:00:06]}  Be7 {[%clk 0:00:12]} 42. Rb1 {[%clk 0:00:06]}  Ra2 {[%clk 0:00:12]} 43. Rf2 {[%clk 0:00:04]}  Rb6 {[%clk 0:00:11]} 44. Rff1 {[%clk 0:00:04]}  Rb3 {[%clk 0:00:10]} 45. Rfe1 {[%clk 0:00:04]}  Bb4 {[%clk 0:00:09]} 46. Re2 {[%clk 0:00:03]}  Ba3 {[%clk 0:00:10]} 47. Kc1 {[%clk 0:00:03]}  c3 {[%clk 0:00:07]} 48. bxa3 {[%clk 0:00:03]}  Rxb1+ {[%clk 0:00:07]} 49. Kxb1 {[%clk 0:00:03]}  Rxa3 {[%clk 0:00:02]} 50. f6 {[%clk 0:00:03]}  Kd8 {[%clk 0:00:03]} 51. Rf2 {[%clk 0:00:03]}  Ke8 {[%clk 0:00:03]} 52. Bh5+ {[%clk 0:00:03]}  Kf8 {[%clk 0:00:04]} 53. f7 {[%clk 0:00:04]}  Rb3+ {[%clk 0:00:04]} 54. Kc1 {[%clk 0:00:04]}  Rb4 {[%clk 0:00:01]} 55. Rf5 {[%clk 0:00:04]}  g4 {[%clk 0:00:01]} 56. Rxd5 {[%clk 0:00:03]}  Rb8 {[%clk 0:00:01]} 57. Rg5 {[%clk 0:00:04]}  h3 {[%clk 0:00:01]} 58. Rg8+ {[%clk 0:00:04]}  Ke7 {[%clk 0:00:02]} 59. gxh3 {[%clk 0:00:04]}  gxh3 {[%clk 0:00:02]} 60. Rxb8 {[%clk 0:00:04]}  h2 {[%clk 0:00:03]} 61. f8=Q+ {[%clk 0:00:03]}  Ke6 {[%clk 0:00:04]} 62. Re8+ {[%clk 0:00:03]}  Kd5 {[%clk 0:00:04]} 63. Qf5+ {[%clk 0:00:03]}  Kc4 {[%clk 0:00:05]} 64. Bf7+ {[%clk 0:00:04]}  Kd3 {[%clk 0:00:05]} 65. Qf1+ {[%clk 0:00:04]}  Kxe3 {[%clk 0:00:05]} 66. Rxe4+ {[%clk 0:00:04]}  Kxe4 {[%clk 0:00:06]} 67. Qh1+ {[%clk 0:00:05]}  Kxd4 {[%clk 0:00:06]} 68. Qxh2 {[%clk 0:00:06]}  Kd3 {[%clk 0:00:06]} 69. Qc2+ {[%clk 0:00:06]}  Kd4 {[%clk 0:00:06]} 70. Bg6 {[%clk 0:00:06]}  Kc4 {[%clk 0:00:06]} 71. Bd3+ {[%clk 0:00:07]}  Kd4 {[%clk 0:00:07]} 72. Qa4+ {[%clk 0:00:07]}  Ke3 {[%clk 0:00:08]} 73. Qc4 {[%clk 0:00:07]}  Kf2 {[%clk 0:00:07]} 74. Qxc3 {[%clk 0:00:07]}  Ke3 {[%clk 0:00:08]} 75. Ba6+ {[%clk 0:00:08]}  Ke4 {[%clk 0:00:08]} 76. Qd3+ {[%clk 0:00:08]}  Ke5 {[%clk 0:00:08]} 77. Kd2 {[%clk 0:00:08]}  Kf4 {[%clk 0:00:09]} 78. Qe3+ {[%clk 0:00:08]}  Kf5 {[%clk 0:00:09]} 79. Kd3 {[%clk 0:00:09]}  Kg4 {[%clk 0:00:09]} 80. Qf2 {[%clk 0:00:09]}  Kh3 {[%clk 0:00:08]} 81. Qg1 {[%clk 0:00:08]}  Kh4 {[%clk 0:00:08]} 82. Ke4 {[%clk 0:00:08]}  Kh5 {[%clk 0:00:08]} 83. Kf5 {[%clk 0:00:09]}  Kh6 {[%clk 0:00:08]} 84. Qg6# {[%clk 0:00:09]} 1-0


[Site "https://www.chess.com"]

[Event "Titled Tuesday Blitz May 10 Early 2022"]
[White "Golubova, Anna"]
[Black "Thomas, Anysia"]
[WhiteFideId "24173606"]
[BlackFideId "670472"]
[WhiteElo "2083"]
[BlackElo "2002"]
[Result "1-0"]
[Round "06"]
[TimeControl "180+1"]
[Date "2022.05.11"]
[WhiteClock "0:00:15"]
[BlackClock "0:00:01"]

1. d4 {[%clk 0:03:00]}  Nf6 {[%clk 0:02:59]} 2. Bf4 {[%clk 0:03:01]}  g6 {[%clk 0:02:59]} 3. e3 {[%clk 0:03:01]}  Bg7 {[%clk 0:03:00]} 4. Nf3 {[%clk 0:03:01]}  O-O {[%clk 0:02:59]} 5. h3 {[%clk 0:03:02]}  d6 {[%clk 0:02:59]} 6. Be2 {[%clk 0:03:02]}  b6 {[%clk 0:02:59]} 7. O-O {[%clk 0:03:03]}  Bb7 {[%clk 0:03:00]} 8. c4 {[%clk 0:03:03]}  d5 {[%clk 0:02:59]} 9. Nc3 {[%clk 0:03:02]}  Nbd7 {[%clk 0:02:57]} 10. Rc1 {[%clk 0:03:01]}  c5 {[%clk 0:02:52]} 11. dxc5 {[%clk 0:02:34]}  Nxc5 {[%clk 0:02:50]} 12. b4 {[%clk 0:02:33]}  Nce4 {[%clk 0:02:45]} 13. Be5 {[%clk 0:01:59]}  Nxc3 {[%clk 0:02:16]} 14. Bxc3 {[%clk 0:01:54]}  Rc8 {[%clk 0:02:16]} 15. cxd5 {[%clk 0:01:47]}  Bxd5 {[%clk 0:02:16]} 16. a3 {[%clk 0:01:42]}  Qd6 {[%clk 0:02:02]} 17. Be5 {[%clk 0:01:30]}  Qe6 {[%clk 0:01:56]} 18. Qd4 {[%clk 0:01:28]}  Rcd8 {[%clk 0:01:42]} 19. Qb2 {[%clk 0:01:20]}  Rfe8 {[%clk 0:01:35]} 20. Rfd1 {[%clk 0:01:17]}  h6 {[%clk 0:00:46]} 21. Rc7 {[%clk 0:01:14]}  a5 {[%clk 0:00:21]} 22. b5 {[%clk 0:00:51]}  a4 {[%clk 0:00:20]} 23. Rdc1 {[%clk 0:00:41]}  Bb3 {[%clk 0:00:18]} 24. R7c6 {[%clk 0:00:33]}  Qf5 {[%clk 0:00:16]} 25. Rxb6 {[%clk 0:00:27]}  Bd5 {[%clk 0:00:12]} 26. Ra6 {[%clk 0:00:20]}  e6 {[%clk 0:00:11]} 27. Bd4 {[%clk 0:00:19]}  Nh5 {[%clk 0:00:10]} 28. Rxa4 {[%clk 0:00:18]}  Bxf3 {[%clk 0:00:09]} 29. Bxf3 {[%clk 0:00:18]}  Bxd4 {[%clk 0:00:09]} 30. Rxd4 {[%clk 0:00:19]}  Rxd4 {[%clk 0:00:08]} 31. Qxd4 {[%clk 0:00:20]}  Nf6 {[%clk 0:00:07]} 32. b6 {[%clk 0:00:20]}  Nd5 {[%clk 0:00:03]} 33. Bxd5 {[%clk 0:00:17]}  exd5 {[%clk 0:00:03]} 34. b7 {[%clk 0:00:18]}  Rb8 {[%clk 0:00:02]} 35. Qb6 {[%clk 0:00:18]}  Kh7 {[%clk 0:00:02]} 36. Rc7 {[%clk 0:00:17]}  Qe5 {[%clk 0:00:02]} 37. Rxf7+ {[%clk 0:00:16]}  Kg8 {[%clk 0:00:01]} 38. Qxg6+ {[%clk 0:00:15]} 1-0


[Site "https://www.chess.com"]

[Event "Titled Tuesday Blitz May 10 Early 2022"]
[White "Agasarov, Benik"]
[Black "Sapunov, Evgeny"]
[WhiteFideId "13314823"]
[BlackFideId "4126661"]
[WhiteElo "2578"]
[BlackElo "2470"]
[Result "0-1"]
[Round "06"]
[TimeControl "180+1"]
[Date "2022.05.11"]
[WhiteClock "0:00:14"]
[BlackClock "0:00:22"]

1. e4 {[%clk 0:03:00]}  c5 {[%clk 0:03:00]} 2. Nf3 {[%clk 0:02:58]}  d6 {[%clk 0:03:00]} 3. Nc3 {[%clk 0:02:57]}  Nc6 {[%clk 0:03:00]} 4. d4 {[%clk 0:02:52]}  cxd4 {[%clk 0:03:00]} 5. Nxd4 {[%clk 0:02:53]}  Nf6 {[%clk 0:03:00]} 6. Bg5 {[%clk 0:02:48]}  e6 {[%clk 0:03:00]} 7. Bc4 {[%clk 0:02:46]}  a6 {[%clk 0:02:57]} 8. O-O {[%clk 0:02:43]}  Be7 {[%clk 0:02:57]} 9. Kh1 {[%clk 0:02:40]}  O-O {[%clk 0:02:56]} 10. f4 {[%clk 0:02:40]}  d5 {[%clk 0:02:56]} 11. Nxc6 {[%clk 0:02:31]}  bxc6 {[%clk 0:02:56]} 12. Bd3 {[%clk 0:02:30]}  h6 {[%clk 0:02:30]} 13. Bxf6 {[%clk 0:02:29]}  Bxf6 {[%clk 0:02:30]} 14. e5 {[%clk 0:02:29]}  Be7 {[%clk 0:02:30]} 15. Ne2 {[%clk 0:02:25]}  c5 {[%clk 0:02:26]} 16. c3 {[%clk 0:02:20]}  Rb8 {[%clk 0:02:24]} 17. Rb1 {[%clk 0:02:17]}  a5 {[%clk 0:02:24]} 18. Ng3 {[%clk 0:02:17]}  g6 {[%clk 0:02:22]} 19. Qg4 {[%clk 0:02:13]}  Kh7 {[%clk 0:02:04]} 20. Nh5 {[%clk 0:02:02]}  Rg8 {[%clk 0:01:36]} 21. Rf3 {[%clk 0:02:00]}  Kh8 {[%clk 0:01:33]} 22. Rh3 {[%clk 0:01:54]}  gxh5 {[%clk 0:01:13]} 23. Qxh5 {[%clk 0:01:53]}  Qf8 {[%clk 0:01:12]} 24. g4 {[%clk 0:01:47]}  c4 {[%clk 0:01:06]} 25. Bc2 {[%clk 0:01:44]}  Bb7 {[%clk 0:00:53]} 26. f5 {[%clk 0:01:40]}  d4+ {[%clk 0:00:43]} 27. Kg1 {[%clk 0:01:40]}  Bg5 {[%clk 0:00:32]} 28. fxe6 {[%clk 0:01:33]}  d3 {[%clk 0:00:28]} 29. Ba4 {[%clk 0:01:23]}  fxe6 {[%clk 0:00:26]} 30. Rf1 {[%clk 0:01:15]}  Qg7 {[%clk 0:00:26]} 31. Rf7 {[%clk 0:01:12]}  Qg6 {[%clk 0:00:27]} 32. Qxg6 {[%clk 0:00:19]}  Rxg6 {[%clk 0:00:26]} 33. Rhf3 {[%clk 0:00:19]}  Bd5 {[%clk 0:00:25]} 34. Rf8+ {[%clk 0:00:16]}  Rxf8 {[%clk 0:00:24]} 35. Rxf8+ {[%clk 0:00:17]}  Rg8 {[%clk 0:00:22]} 36. Rf7 {[%clk 0:00:15]}  Be3+ {[%clk 0:00:22]} 37. Kf1 {[%clk 0:00:14]}  Rxg4 {[%clk 0:00:22]} 0-1


[Site "https://www.chess.com"]

[Event "Titled Tuesday Blitz May 10 Early 2022"]
[White "Alekseenko, Kirill"]
[Black "Dardha, Daniel"]
[WhiteFideId "4135539"]
[BlackFideId "240990"]
[WhiteElo "2682"]
[BlackElo "2482"]
[Result "0-1"]
[Round "06"]
[TimeControl "180+1"]
[Date "2022.05.10"]
[WhiteClock "0:00:11"]
[BlackClock "0:00:07"]

1. e4 {[%clk 0:03:00]}  c5 {[%clk 0:02:54]} 2. Nf3 {[%clk 0:03:01]}  Nc6 {[%clk 0:02:53]} 3. d4 {[%clk 0:03:00]}  cxd4 {[%clk 0:02:52]} 4. Nxd4 {[%clk 0:03:01]}  e5 {[%clk 0:02:48]} 5. Nb5 {[%clk 0:02:59]}  d6 {[%clk 0:02:49]} 6. N1c3 {[%clk 0:02:58]}  a6 {[%clk 0:02:49]} 7. Na3 {[%clk 0:02:58]}  Be6 {[%clk 0:02:49]} 8. Nc4 {[%clk 0:02:55]}  Rb8 {[%clk 0:02:48]} 9. Ne3 {[%clk 0:02:52]}  Nf6 {[%clk 0:02:48]} 10. Bd3 {[%clk 0:02:48]}  g6 {[%clk 0:02:47]} 11. O-O {[%clk 0:02:46]}  Bg7 {[%clk 0:02:47]} 12. Ncd5 {[%clk 0:02:43]}  Bxd5 {[%clk 0:02:46]} 13. exd5 {[%clk 0:02:37]}  Ne7 {[%clk 0:02:46]} 14. c4 {[%clk 0:02:36]}  O-O {[%clk 0:02:44]} 15. Be2 {[%clk 0:02:19]}  Nd7 {[%clk 0:02:35]} 16. b3 {[%clk 0:02:17]}  e4 {[%clk 0:02:27]} 17. Rb1 {[%clk 0:02:09]}  f5 {[%clk 0:02:27]} 18. Nc2 {[%clk 0:02:08]}  Ne5 {[%clk 0:02:11]} 19. Nd4 {[%clk 0:02:06]}  Qd7 {[%clk 0:02:03]} 20. Ne6 {[%clk 0:02:05]}  Bf6 {[%clk 0:02:03]} 21. Nxf8 {[%clk 0:02:03]}  Rxf8 {[%clk 0:02:04]} 22. f4 {[%clk 0:02:03]}  exf3 {[%clk 0:02:04]} 23. Bxf3 {[%clk 0:02:03]}  g5 {[%clk 0:02:03]} 24. Be2 {[%clk 0:01:54]}  f4 {[%clk 0:02:02]} 25. h3 {[%clk 0:01:46]}  Nf5 {[%clk 0:01:44]} 26. Bg4 {[%clk 0:01:47]}  Nxg4 {[%clk 0:01:35]} 27. Qxg4 {[%clk 0:01:30]}  Qg7 {[%clk 0:01:23]} 28. Bd2 {[%clk 0:01:12]}  Bd4+ {[%clk 0:00:57]} 29. Kh2 {[%clk 0:01:12]}  Qg6 {[%clk 0:00:49]} 30. Rbe1 {[%clk 0:01:08]}  h5 {[%clk 0:00:47]} 31. Re6 {[%clk 0:00:57]}  Rf6 {[%clk 0:00:37]} 32. Rxf6 {[%clk 0:00:56]}  Bxf6 {[%clk 0:00:36]} 33. Qf3 {[%clk 0:00:54]}  Be5 {[%clk 0:00:31]} 34. Kg1 {[%clk 0:00:27]}  g4 {[%clk 0:00:26]} 35. Qd3 {[%clk 0:00:26]}  f3 {[%clk 0:00:14]} 36. hxg4 {[%clk 0:00:25]}  Bd4+ {[%clk 0:00:12]} 37. Rf2 {[%clk 0:00:20]}  hxg4 {[%clk 0:00:10]} 38. Bc3 {[%clk 0:00:20]}  g3 {[%clk 0:00:05]} 39. Qxf3 {[%clk 0:00:12]}  gxf2+ {[%clk 0:00:05]} 40. Kf1 {[%clk 0:00:13]}  Ng3+ {[%clk 0:00:05]} 41. Qxg3 {[%clk 0:00:11]}  Qxg3 {[%clk 0:00:06]} 42. Bxd4 {[%clk 0:00:11]}  Qd3+ {[%clk 0:00:07]} 0-1


[Site "https://www.chess.com"]

[Event "Titled Tuesday Blitz May 10 Early 2022"]
[White "Al-Tarboush, Ward"]
[Black "Wagh Suyog"]
[WhiteFideId "7601450"]
[BlackFideId "25071688"]
[WhiteElo "2294"]
[BlackElo "2181"]
[Result "0-1"]
[Round "06"]
[TimeControl "180+1"]
[Date "2022.05.11"]
[WhiteClock "0:00:18"]
[BlackClock "0:01:09"]

1. e4 {[%clk 0:03:00]}  c5 {[%clk 0:02:58]} 2. Nf3 {[%clk 0:03:01]}  Nc6 {[%clk 0:02:58]} 3. d4 {[%clk 0:03:01]}  cxd4 {[%clk 0:02:58]} 4. Nxd4 {[%clk 0:03:02]}  Nf6 {[%clk 0:02:59]} 5. Nc3 {[%clk 0:03:01]}  d6 {[%clk 0:02:59]} 6. Bg5 {[%clk 0:03:00]}  e6 {[%clk 0:02:59]} 7. Qd2 {[%clk 0:03:00]}  a6 {[%clk 0:02:59]} 8. O-O-O {[%clk 0:02:58]}  Bd7 {[%clk 0:02:58]} 9. f4 {[%clk 0:02:58]}  Be7 {[%clk 0:02:59]} 10. Nf3 {[%clk 0:02:57]}  b5 {[%clk 0:02:59]} 11. Bxf6 {[%clk 0:02:57]}  gxf6 {[%clk 0:02:59]} 12. Bd3 {[%clk 0:02:55]}  Qb6 {[%clk 0:02:58]} 13. f5 {[%clk 0:02:55]}  O-O-O {[%clk 0:02:58]} 14. fxe6 {[%clk 0:02:55]}  fxe6 {[%clk 0:02:57]} 15. Rhe1 {[%clk 0:02:54]}  h5 {[%clk 0:02:55]} 16. Kb1 {[%clk 0:02:52]}  Ne5 {[%clk 0:02:49]} 17. Be2 {[%clk 0:02:47]}  h4 {[%clk 0:02:41]} 18. Nd4 {[%clk 0:02:36]}  b4 {[%clk 0:02:40]} 19. Nxe6 {[%clk 0:02:26]}  Bxe6 {[%clk 0:02:30]} 20. Nd5 {[%clk 0:02:25]}  Bxd5 {[%clk 0:02:30]} 21. Qxd5 {[%clk 0:02:26]}  Kb8 {[%clk 0:02:26]} 22. Rd4 {[%clk 0:02:23]}  Rc8 {[%clk 0:02:17]} 23. Red1 {[%clk 0:02:11]}  Ka7 {[%clk 0:02:07]} 24. Qe6 {[%clk 0:02:09]}  Rc7 {[%clk 0:02:07]} 25. b3 {[%clk 0:01:28]}  Rhc8 {[%clk 0:02:04]} 26. R4d2 {[%clk 0:01:28]}  Qe3 {[%clk 0:01:49]} 27. Qd5 {[%clk 0:01:13]}  Rc5 {[%clk 0:01:47]} 28. Qe6 {[%clk 0:01:09]}  R5c7 {[%clk 0:01:46]} 29. Qd5 {[%clk 0:01:09]}  Bf8 {[%clk 0:01:42]} 30. Qa5 {[%clk 0:01:02]}  Qb6 {[%clk 0:01:42]} 31. Qd5 {[%clk 0:01:02]}  Bh6 {[%clk 0:01:40]} 32. Rd4 {[%clk 0:00:41]}  Be3 {[%clk 0:01:38]} 33. Bxa6 {[%clk 0:00:33]}  Kxa6 {[%clk 0:01:29]} 34. R4d3 {[%clk 0:00:23]}  Nxd3 {[%clk 0:01:28]} 35. Qxd3+ {[%clk 0:00:24]}  Ka7 {[%clk 0:01:27]} 36. c4 {[%clk 0:00:24]}  bxc3 {[%clk 0:01:24]} 37. Kc2 {[%clk 0:00:25]}  Bf4 {[%clk 0:01:22]} 38. Qe2 {[%clk 0:00:21]}  Qe3 {[%clk 0:01:20]} 39. Qb5 {[%clk 0:00:18]}  Qd2+ {[%clk 0:01:16]} 40. Rxd2 {[%clk 0:00:17]}  cxd2+ {[%clk 0:01:17]} 41. Kb2 {[%clk 0:00:16]}  d1=N+ {[%clk 0:01:09]} 42. Ka3 {[%clk 0:00:17]}  Bc1+ {[%clk 0:01:09]} 43. Kb4 {[%clk 0:00:18]}  Rb7 {[%clk 0:01:09]} 0-1


[Site "https://www.chess.com"]